[Event "SVK ECo-C Extraliga 2021-22"]
[Site "Slovakia"]
[Date "2022.03.13"]
[Round "6.8"]
[White "Antal, Jakub"]
[Black "Tropp, Frantisek"]
[Result "1-0"]
[ECO "C55"]
[WhiteElo "1898"]
[BlackElo "2069"]
[Annotator "ChessBase"]
[PlyCount "129"]
[EventDate "2021.10.21"]
[EventType "team-tourn"]
[EventCountry "SVK"]
[SourceTitle "playchess.com"]
[Source "ChessBase"]
[SourceQuality "1"]
[TimeControl "40/5400+30:1800+30"]

1. e4 {[%emt 0:00:45]} e5 {[%emt 0:00:15]} 2. Bc4 {[%emt 0:00:56]} Nf6 {[%emt 0:00:52]} 3. d3 {[%emt 0:00:41]} Nc6 {[%emt 0:02:36]} 4. Nf3 {[%emt 0:00:32]} Be7 {[%emt 0:00:10]} 5. O-O {[%emt 0:02:12]} d6 {[%emt 0:04:52]} 6. c3 {[%emt 0:02:14]} O-O {[%emt 0:01:16]} 7. Re1 {[%emt 0:01:57]} Na5 {[%emt 0:01:19]} 8. Bb5 {[%emt 0:03:29]} a6 {[%emt 0:00:48]} 9. Ba4 {[%emt 0:00:08]} b5 {[%emt 0:00:11]} 10. Bc2 {[%emt 0:00:05]} c5 {[%emt 0:00:09]} 11. Nbd2 {[%emt 0:02:25]} Qc7 {[%emt 0:00:22]} 12. Nf1 {[%emt 0:04:52]} Nc6 {[%emt 0:00:25]} 13. Bg5 {[%emt 0:20:47]} h6 {[%emt 0:02:02]} 14. Bxf6 {[%emt 0:08:08]} Bxf6 {[%emt 0:00:08]} 15. Ne3 {[%emt 0:03:36]} Be6 {[%emt 0:01:38]} 16. Bb3 {[%emt 0:01:41]} Bxb3 {[%emt 0:05:30]} 17. Qxb3 {[%emt 0:07:08]} Ne7 {[%emt 0:08:11]} 18. Nd5 {[%emt 0:03:24]} Nxd5 {[%emt 0:00:21]} 19. Qxd5 {[%emt 0:00:22]} Rab8 {[%emt 0:00:31]} 20. a3 {[%emt 0:05:25]} Rfc8 {[%emt 0:01:32]} 21. b3 {[%emt 0:03:45]} c4 {[%emt 0:04:34]} 22. dxc4 {[%emt 0:01:38]} bxc4 {[%emt 0:00:17]} 23. b4 {[%emt 0:00:15]} Be7 {[%emt 0:03:08]} 24. a4 {[%emt 0:05:22]} Rb6 {[%emt 0:01:30]} 25. Red1 {[%emt 0:01:55]} Qc6 {[%emt 0:02:06]} 26. Qxc6 {[%emt 0:02:16]} Rbxc6 {[%emt 0:00:40]} 27. Rd5 {[%emt 0:00:22]} g6 {[%emt 0:00:30]} 28. g4 {[%emt 0:02:02]} Kg7 {[%emt 0:00:50]} 29. Kg2 {[%emt 0:00:31]} Kf6 {[%emt 0:00:45]} 30. Kg3 {[%emt 0:00:37]} Ke6 {[%emt 0:00:15]} 31. Nh4 {[%emt 0:08:04]} Bg5 {[%emt 0:16:47]} 32. f3 {[%emt 0:06:38]} Bf4+ {[%emt 0:02:41]} 33. Kg2 {[%emt 0:00:26]} h5 {[%emt 0:05:50]} 34. gxh5 {[%emt 0:01:14]} Rh8 {[%emt 0:00:51]} 35. b5 {[%emt 0:00:38]} Rcc8 {[%emt 0:01:07]} 36. Kf2 {[%emt 0:01:21]} Bxh2 {[%emt 0:02:57]} 37. Rad1 {[%emt 0:00:07]} Rcd8 {[%emt 0:00:24]} 38. hxg6 {[%emt 0:00:58]} fxg6 {[%emt 0:02:07]} 39. Nxg6 {[%emt 0:00:30]} Rhg8 {[%emt 0:00:08]} 40. Rh1 {[%emt 0:00:29]} Bg3+ {[%emt 0:02:15]} 41. Kxg3 {[%emt 0:30:19]} Rxg6+ {[%emt 0:30:46]} 42. Kf2 {[%emt 0:00:27]} axb5 {[%emt 0:00:05]} 43. Rxb5 {[%emt 0:00:00]} Rdg8 {[%emt 0:00:00]} 44. Rb4 {[%emt 0:00:00]} Rg2+ {[%emt 0:00:00]} 45. Ke3 {[%emt 0:00:00]} Rc2 {[%emt 0:00:00]} 46. Rxc4 {[%emt 0:00:00]} Rgg2 {[%emt 0:00:00]} 47. Rc7 {[%emt 0:00:00]} Kf6 {[%emt 0:00:00]} 48. Kd3 {[%emt 0:00:00]} Rgd2+ {[%emt 0:00:00]} 49. Kc4 {[%emt 0:00:00]} Ra2 {[%emt 0:00:00]} 50. Ra7 {[%emt 0:00:00]} Kg5 {[%emt 0:00:00]} 51. Rb1 {[%emt 0:00:00]} Kf4 {[%emt 0:00:00]} 52. Rf7+ {[%emt 0:00:00]} Ke3 {[%emt 0:00:00]} 53. Kb4 {[%emt 0:00:00]} Kd3 {[%emt 0:00:00]} 54. Rb3 {[%emt 0:00:18]} Kc2 {[%emt 0:00:06]} 55. c4 {[%emt 0:01:31]} Ra1 {[%emt 0:00:54]} 56. Ra7 {[%emt 0:01:08]} Rh1 {[%emt 0:02:56]} 57. a5 {[%emt 0:00:32]} Rh8 {[%emt 0:01:34]} 58. a6 {[%emt 0:02:17]} Rd1 {[%emt 0:00:07]} 59. Rc3+ {[%emt 0:01:29]} Kd2 {[%emt 0:01:38]} 60. Rb7 {[%emt 0:00:54]} Ra1 {[%emt 0:05:40]} 61. Ra3 {[%emt 0:00:46]} Rb1+ {[%emt 0:04:02]} 62. Ka5 {[%emt 0:00:38]} Rc1 {[%emt 0:00:19]} 63. a7 {[%emt 0:00:56]} Ra8 {[%emt 0:02:15]} 64. Ka6 {[%emt 0:00:38]} Rxc4 {[%emt 0:01:05]} 65. Rb8 {[%emt 0:00:14]} 1-0

[Event "SVK ECo-C Extraliga 2021-22"]
[Site "Slovakia"]
[Date "2022.05.08"]
[Round "7.1"]
[White "Saric, Ivan"]
[Black "Aczel, Gergely"]
[Result "0-1"]
[ECO "B90"]
[WhiteElo "2693"]
[BlackElo "2519"]
[Annotator "TA"]
[PlyCount "122"]
[EventDate "2021.10.21"]
[EventType "team-tourn"]
[EventCountry "SVK"]
[SourceTitle "playchess.com"]
[Source "ChessBase"]
[SourceQuality "1"]
[TimeControl "40/5400+30:1800+30"]

{[%evp 12,122,9,10,12,6,7,0,4,0,0,0,0,0,0,0,0,0,0,0,0,3,14,15,31,41,45,32,38,0,5,18,16,0,0,-14,-10,-70,-30,-26,-27,-28,-12,-18,-22,-35,-36,-39,-47,-126,-125,-166,-156,-287,-162,-128,-80,-89,-70,-110,-103,-170,-148,-154,-151,-164,-162,-168,-162,-364,-341,-392,-388,-420,-420,-420,-409,-413,-413,-402,-391,-367,-348,-1280,-1280,-1781,-1634,-1734,-1694,-1436,-1151,-1406,-1202,-979,-596,-29955,-29955,-29964,-29965,-29967,-29968,-29971,-29972,-29972,-29973,-29973,-29974,-29970,-29967,-29970,-29971,-29958,-6416]} 1. e4 {[%emt 0:00:06]} c5 {[%emt 0:00:07]} 2. Nf3 {[%emt 0:00:05]} d6 {[%emt 0:00:04]} 3. d4 {[%emt 0:00:10]} cxd4 {[%emt 0:00:04]} 4. Nxd4 {[%emt 0:00:04]} Nf6 {[%emt 0:00:06]} 5. Nc3 {[%emt 0:00:05]} a6 {[%emt 0:00:04]} 6. h3 {[%emt 0:00:47]} e5 {[%emt 0:00:05]} 7. Nde2 {[%emt 0:00:05]} h5 {[%emt 0:00:05] B90: Sicilian Najdorf: Unusual White 6th moves, 6 Be3 Ng4 and 6 Be3 e5.} 8. g3 {[%emt 0:00:16]} Be6 {[%emt 0:00:08]} 9. Bg2 {[%emt 0:00:19]} b5 $1 {[%emt 0:00:06][%cal Bb7b5,Bb5b4][%mdl 32] The position is equal. 9...b5 scores better than 9...Nbd7.} 10. a4 {[%emt 0:01:09]} b4 {[%emt 0:00:05]} 11. Nd5 {[%emt 0:00:03]} Nxd5 {[%emt 0:00:07]} 12. exd5 {[%emt 0:00:02]} Bf5 {[%emt 0:00:07]} 13. c3 {[%emt 0:02:05]} bxc3 {[%emt 0:00:05]} 14. Nxc3 {[%emt 0:00:03][%cal Be2c3,Bc3a4,Ba4b6][%mdl 32]} Be7 {[%emt 0:00:10]} 15. a5 {[%emt 0:01:16]} Nd7 {[%emt 0:03:48]} 16. O-O {[%emt 0:00:16]} Rb8 {[%emt 0:09:03]} 17. Ra3 {[%emt 0:01:51]} Qc8 {[%emt 0:27:25]} 18. Na4 {[%emt 0:15:15]} Rb5 {[%emt 0:10:54] [#]} 19. Bd2 $146 {[%emt 0:06:05]} ({Predecessor:} 19. Rc3 Qb8 20. Rc6 Bd8 21. Bd2 Bxa5 22. Bxa5 Rxa5 23. Qf3 g6 24. Qc3 Rxa4 25. Rc8+ {½-½ (38) Shpakovsky,A (2544)-Finocchiaro,F (2570) ICCF email 2020}) 19... O-O {[%emt 0:12:43]} 20. b4 {[%emt 0:16:24]} (20. Rc3 $5 {[%cal Rc3c8]} Qb7 21. Qxh5 $14) 20... Nf6 {[%emt 0:09:41][%csl LRd5,LRh3]} 21. Nb6 {[%emt 0:02:25]} Qb7 {[%emt 0:01:08]} 22. Re1 {[%emt 0:07:38] Inhibits Be4.} Bd8 $1 {[%emt 0:00:25]} 23. Nc4 {[%emt 0:00:23]} Qd7 {[%emt 0:00:37]} 24. Bg5 {[%emt 0:15:30]} (24. h4 $11) 24... Rxb4 {[%emt 0:02:43][%cal Bb5b4,Bb4c4,Bc4c5][%mdl 32]} 25. Bxf6 {[%emt 0:00:17]} Rxc4 {[%emt 0:11:08]} 26. Bxd8 {[%emt 0:00:05]} Rxd8 {[%emt 0:00:30][%cal Bf8d8,Bd8b8,Bb8b4][%mdl 32]} 27. Qxh5 {[%emt 0:00:17]} Rc5 {[%emt 0:01:07]} 28. g4 {[%emt 0:06:25]} Bg6 {[%emt 0:00:39]} 29. Qg5 {[%emt 0:00:06]} Rb8 {[%emt 0:02:50]} 30. h4 {[%emt 0:00:44]} ({Better is} 30. f4 $15) 30... Rb4 $17 {[%emt 0:01:58]} 31. Rg3 {[%emt 0:00:32]} Rcc4 {[%emt 0:01:05][%cal Rc4g4]} ({Not} 31... Rxa5 32. h5 Bb1 33. h6 $15) 32. Bh3 {[%emt 0:04:10]} (32. f3 $17 {was necessary.}) 32... Be4 {[%emt 0:01:47]} (32... Rf4 $142 {White must now prevent ...Kh7.} 33. h5 Be4) 33. h5 $19 {[%emt 0:03:58][%cal Oe1e4]} Bxd5 {[%emt 0:00:06]} (33... f6 $142 34. Qd2 Qb7) 34. h6 $17 {[%emt 0:00:58][%csl Gh6][%cal Rg5g7]} f6 $36 {[%emt 0:00:02][%mdl 2048] Black is pushing.} 35. Qh5 {[%emt 0:03:56]} Bf7 {[%emt 0:01:40][%cal Bd5f7,Bf7h5,Bh5f3][%mdl 32] Black is more active.} 36. g5 {[%emt 0:00:05]} Bxh5 {[%emt 0:00:59]} 37. Bxd7 {[%emt 0:00:04]} Kh7 $1 {[%emt 0:01:30]} 38. Bf5+ {[%emt 0:07:41]} g6 {[%emt 0:00:32]} 39. Bd3 {[%emt 0:00:22]} Rf4 {[%emt 0:02:52]} 40. Ra1 $2 {[%emt 0:00:17]} (40. gxf6 Ra4 41. Bxa6) 40... fxg5 $1 $19 {[%emt 0:01:06][%cal Bf6g5,Bg5g4][%mdl 32]} 41. Bxa6 {[%emt 0:30:05] [#]} Bf3 $1 {[%emt 0:03:11]} 42. Bf1 {[%emt 0:00:00]} g4 {[%emt 0:00:29] aiming for ...Ra4.} 43. Bg2 {[%emt 0:00:00]} Ra4 {[%emt 0:01:25]} 44. Rxa4 {[%emt 0:00:00]} Rxa4 {[%emt 0:00:06]} 45. Bxf3 {[%emt 0:00:00]} gxf3 {[%emt 0:00:11]} 46. Rxf3 {[%emt 0:00:00]} Rxa5 {[%emt 0:00:25][%mdl 4096] Endgame KR-KR} 47. Rd3 $2 {[%emt 0:00:00]} (47. Rh3) 47... d5 {[%emt 0:06:48][%cal Bd6d5,Bd5d4][%mdl 32]} 48. Rh3 {[%emt 0:00:00]} Ra1+ {[%emt 0:04:49]} 49. Kg2 {[%emt 0:00:00]} d4 {[%emt 0:00:20]} 50. Rb3 {[%emt 0:00:00]} Kxh6 {[%emt 0:00:26]} 51. Rb5 {[%emt 0:00:00]} Re1 {[%emt 0:01:04]} 52. f3 {[%emt 0:00:00]} Kg5 {[%emt 0:00:29] ( -> ...Kf4)} 53. Kf2 {[%emt 0:00:00]} Re3 {[%emt 0:00:06] Black mates.} 54. Rb8 {[%emt 0:00:00]} e4 {[%emt 0:11:09]} 55. fxe4 {[%emt 0:00:00]} Rxe4 {[%emt 0:00:13]} 56. Rd8 {[%emt 0:00:00]} Kg4 {[%emt 0:00:28]} 57. Rd6 {[%emt 0:00:00]} g5 {[%emt 0:00:06]} 58. Rd5 {[%emt 0:00:00]} Kf4 {[%emt 0:00:13]} 59. Rd8 {[%emt 0:00:00]} Ke5 {[%emt 0:00:56]} 60. Rd7 {[%emt 0:00:00]} Rf4+ {[%emt 0:00:20]} 61. Ke2 {[%emt 0:00:00]} Kf5 {[%emt 0:00:19] Weighted Error Value: White=0.58/Black=0.14 (very precise)} (61... g4 $142 62. Rd8 g3 63. Rh8 Rf2+ 64. Kd3 Rf3+ 65. Ke2 {[#]} g2 $1 {[%mdl 512]} 66. Re8+ Kf5 67. Rg8 Rc3 68. Rf8+ Ke6 69. Kf2 Rc2+ 70. Kg1 d3 71. Re8+ Kd7 72. Re5 d2 73. Rd5+ Ke6 74. Rd8 Rc1+ 75. Kxg2 d1=Q 76. Rxd1 Rxd1 77. Kf2 Rd4 78. Ke3 Ke5 79. Kf3 Kf5 80. Ke3 Rd5 81. Kf2 Re5 82. Kg3 Re3+ 83. Kf2 Kf4 84. Kg2 Re2+ 85. Kf1 Kf3 86. Kg1 Re1+ 87. Kh2 Ra1 88. Kh3 Rh1#) 0-1

[Event "SVK ECo-C Extraliga 2021-22"]
[Site "Slovakia"]
[Date "2022.05.07"]
[Round "7.1"]
[White "Plat, Vojtech"]
[Black "Mazur, Stefan"]
[Result "1/2-1/2"]
[ECO "C85"]
[WhiteElo "2554"]
[BlackElo "2423"]
[Annotator "TA"]
[PlyCount "144"]
[EventDate "2021.10.21"]
[EventType "team-tourn"]
[EventCountry "SVK"]
[SourceTitle "playchess.com"]
[Source "ChessBase"]
[SourceQuality "1"]
[TimeControl "40/5400+30:1800+30"]

{[%evp 23,144,30,11,0,17,0,35,18,13,10,10,-48,-38,-31,-31,-48,-39,-33,-45,-53,-66,-60,-8,-8,-14,-16,0,0,0,-41,0,0,3,0,37,15,50,0,0,0,0,0,0,-12,0,-16,0,-8,-13,-5,0,0,0,0,0,-170,0,0,0,-8,-32,-16,-17,-18,-16,-77,-85,-68,-70,-118,-8,-72,-18,-66,-8,-66,-66,-66,-66,-66,-66,-66,-66,-66,-64,-63,0,-66,-65,-66,0,0,0,0,0,-8,-8,-172,-144,-157,-70,-537,0,0,50,0,0,-8,-8,-8,-8,-8,-8,-8,-8,-8,0,0,0,0,0,0,0]} 1. e4 {[%emt 0:00:15]} e5 {[%emt 0:00:11]} 2. Nf3 {[%emt 0:00:05]} Nc6 {[%emt 0:00:05]} 3. Bb5 {[%emt 0:00:04]} a6 {[%emt 0:00:39]} 4. Ba4 {[%emt 0:00:05]} Nf6 {[%emt 0:00:05][%cal Bg8f6,Bf6d7,Bd7c5][%mdl 32]} 5. O-O {[%emt 0:00:12]} Be7 {[%emt 0:02:29]} 6. Bxc6 {[%emt 0:00:08]} dxc6 {[%emt 0:01:08]} 7. d3 {[%emt 0:00:09]} Nd7 8. Nbd2 {[%emt 0:00:44]} O-O {[%emt 0:01:49]} 9. Nc4 {[%emt 0:00:30]} f6 {[%emt 0:02:21]} 10. Nh4 {[%emt 0:04:47]} Nc5 {[%emt 0:19:57]} 11. Nf5 {[%emt 0:01:22]} Bxf5 {[%emt 0:02:50]} 12. exf5 {[%emt 0:00:08]} Qd7 {[%emt 0:00:46]} 13. Qh5 {[%emt 0:09:56] C85: Closed Ruy Lopez: Deferred Exchange Variation.} Rfe8 {[%emt 0:02:55]} 14. Be3 {[%emt 0:00:51] [#]} b6 $146 {[%emt 0:00:42]} (14... e4 $5 {[%cal Re4d3]}) ({Predecessor:} 14... e4 15. d4 Na4 16. Rab1 Bf8 17. Rfd1 b5 18. Nd2 b4 19. Nf1 Nb6 20. Ng3 Bd6 {½-½ (45) Cuijpers,F (2435)-Roebers,J Netherlands 1996}) 15. Rad1 {[%emt 0:09:46] White is slightly better.} Nb7 {[%emt 0:01:42]} 16. d4 {[%emt 0:00:35]} e4 {[%emt 0:01:57]} 17. Ne5 {[%emt 0:00:28]} fxe5 $15 {[%emt 0:02:34]} 18. dxe5 {[%emt 0:00:07]} Qc8 {[%emt 0:11:09]} 19. e6 {[%emt 0:02:47]} Rf8 {[%emt 0:09:03] Inhibits Qf7+.} 20. Rd7 {[%emt 0:02:05]} Qe8 {[%emt 0:01:53]} (20... Bf6 21. Qg4 Nc5 22. Bxc5 bxc5 23. Rfd1 $14) 21. Qxe8 {[%emt 0:00:29]} (21. Qg4 $2 Nd6 22. Rxc7 Nxf5 23. Qxe4 Bd6 $19) 21... Raxe8 {[%emt 0:00:13]} 22. Rxc7 {[%emt 0:00:10]} Nd6 {[%emt 0:00:27]} (22... Na5 $1 $15 23. g4 Nc4) 23. g4 $11 {[%emt 0:00:05]} Nc4 {[%emt 0:04:02]} 24. Bf4 {[%emt 0:05:19]} g5 {[%emt 0:06:28]} 25. Bg3 {[%emt 0:05:46]} e3 {[%emt 0:05:29]} 26. Kg2 {[%emt 0:08:28]} exf2 {[%emt 0:03:22]} (26... h5 $5 27. Rxc6 b5 $15) 27. Bxf2 {[%emt 0:00:41]} c5 {[%emt 0:03:07]} 28. Rb7 {[%emt 0:03:31]} Bd8 {[%emt 0:04:10]} 29. Rd1 {[%emt 0:02:52]} Re7 {[%emt 0:00:30]} 30. Rb8 {[%emt 0:00:14]} (30. Rxe7 $1 $14 Bxe7 31. b3) 30... Bc7 {[%emt 0:01:07]} 31. Rxf8+ {[%emt 0:01:10]} Kxf8 {[%emt 0:00:03]} 32. h4 {[%emt 0:01:52]} Bf4 {[%emt 0:06:37]} 33. Re1 {[%emt 0:04:50]} Nxb2 {[%emt 0:02:33]} 34. Kf3 {[%emt 0:09:47]} Nc4 {[%emt 0:01:15]} 35. Ke4 {[%emt 0:01:02]} Re8 {[%emt 0:01:32] White must now prevent ...Rd8.} 36. Kd5 {[%emt 0:00:25]} Na5 {[%emt 0:01:52] aiming for ...Rd8+.} 37. f6 {[%emt 0:01:33]} Rd8+ {[%emt 0:01:18]} 38. Ke4 {[%emt 0:00:04]} Ke8 {[%emt 0:00:26] And now ...Nc4 would win.} (38... Rd2 39. e7+ Ke8 40. Kf3 Bd6 41. f7+ Kd7 42. e8=Q+ Kc7 43. Bg3) 39. Rh1 $2 {[%emt 0:01:24]} (39. e7 $11 {and White has nothing to worry.} Rd6 40. Kf5 Rd5+ 41. Ke6 Rd6+ 42. Kf5 Rd5+ 43. Ke6 Rd6+ 44. Kf5) 39... Rd6 $2 {[%emt 0:00:33]} (39... Nc4 $1 $19 {[%cal Rc4d2] ( -> ...Nd2+)} 40. hxg5 Bxg5 41. Rxh7 Bxf6) 40. hxg5 {[%emt 0:08:49]} Bxg5 {[%emt 0:00:08]} 41. Bg3 $132 {[%emt 0:33:12][%mdl 2048] White is not keeping still} Rxe6+ {[%emt 0:07:46]} 42. Kf5 {[%emt 0:00:00]} Rxf6+ {[%emt 0:04:18]} (42... Re3 $6 43. Kxg5 Rxg3 44. Rxh7 $15) (42... Re3 {is interesting.} 43. Kxg5 Rxg3 44. Rxh7 Nc6) 43. Kxg5 {[%emt 0:00:00][%mdl 4096] Endgame KRB-KRN} Rf7 {[%emt 0:00:10]} 44. Kh6 {[%emt 0:00:00]} (44. Rh6 $11) 44... Nc4 $17 {[%emt 0:01:22]} 45. Re1+ {[%emt 0:00:00]} Kd7 {[%emt 0:00:14]} 46. Re4 {[%emt 0:00:00] [#]} (46. Bb8 $15) 46... Na3 {[%emt 0:06:30]} (46... Rf3 $1 $17 47. Rxc4 (47. Bb8 Rh3+) 47... Rxg3 48. Kxh7 Rg2) 47. c3 {[%emt 0:00:00]} (47. Rf4 $11 {keeps the balance.} Rxf4 48. Bxf4) 47... Kc6 {[%emt 0:01:19]} ({Better is} 47... Nb5 $17 48. Re3 Na3) 48. Bh4 {[%emt 0:00:00]} (48. Re6+ $11 {is more appropriate.} Kd5 49. Rd6+ Kc4 50. Rxb6) 48... Nb1 {[%emt 0:01:22]} (48... Nb5 $15 49. Re6+ Kd5) 49. Re6+ {[%emt 0:00:00]} (49. c4 $11) 49... Kd5 $15 {[%emt 0:04:04]} 50. Rxb6 {[%emt 0:00:00]} Nxc3 {[%emt 0:00:04]} 51. Rxa6 {[%emt 0:00:00]} Ne4 {[%emt 0:00:06] Prevents Rf6.} 52. Ra8 {[%emt 0:00:00]} c4 {[%emt 0:00:27]} 53. Rd8+ {[%emt 0:00:28]} Kc5 {[%emt 0:00:14]} 54. a4 {[%emt 0:01:21]} Kb4 {[%emt 0:02:09]} (54... Ra7 $15) 55. Rd4 {[%emt 0:03:59]} (55. a5 $11) 55... Rf4 $1 {[%emt 0:02:56]} 56. Be7+ {[%emt 0:01:19]} Kb3 {[%emt 0:01:17]} (56... Kxa4 57. Rxc4+ Kb3 58. Rb4+ Kc3 59. g5 $11) (56... Kc3 $1 $15 57. Rd7 Rxg4) 57. g5 $11 {[%emt 0:01:34] Threatens to win with a5.} c3 {[%emt 0:00:56]} 58. Rb4+ {[%emt 0:02:54]} Ka2 {[%emt 0:00:04]} 59. g6 {[%emt 0:03:44]} hxg6 {[%emt 0:00:53] ...c2 is the strong threat.} (59... c2 $5 60. Rc4 (60. gxh7 {is a self mate.} c1=Q 61. Rxe4 Rf6+ 62. Kh5 Qh6+ 63. Kg4 Qg6+ 64. Kh3 Rf3+ 65. Kh4 Qxe4+ 66. Kh5 Rf5+ 67. Kh6 Qg4 68. h8=Q Rh5#) 60... hxg6 $11) 60. Bg5 $2 {[%emt 0:01:11]} (60. Rc4 $11) 60... Rg4 $1 $19 {[%emt 0:00:53]} 61. Bc1 {[%emt 0:00:43]} Rg1 {[%emt 0:01:09]} (61... g5 $17 {[%cal Og4g1] Strongly threatening ...Rg1!} 62. Kg6 Rh4) 62. Be3 $2 {[%emt 0:01:37][%mdl 8192]} (62. Bf4 $1 $15) 62... Nd2 $2 {[%emt 0:01:51]} ({Black should try} 62... Nd6 $1 $19 {[%cal Rd6f5] Hoping for ...Nf5+.} 63. Kh7 (63. Bxg1 $2 c2 $19) 63... c2 $1 {[%mdl 512]}) 63. a5 $11 {[%emt 0:02:49]} (63. Bxg1 $2 {loses.} c2 64. Be3 c1=Q $19) 63... Re1 {[%emt 0:00:05] [#]} (63... Rh1+ $11 64. Kxg6 Rh8) 64. Bd4 {[%emt 0:00:48]} ({White should play} 64. a6 $1 $14 Rxe3 65. a7) 64... Nb3 {[%emt 0:01:13] The position is equal.} 65. Ra4+ {[%emt 0:01:19]} Kb2 $1 {[%emt 0:01:00]} 66. Bg7 {[%emt 0:01:00]} Rh1+ {[%emt 0:00:35]} 67. Kxg6 {[%emt 0:01:18]} Rg1+ {[%emt 0:00:06]} 68. Kf7 {[%emt 0:00:18] [#]} (68. Kh7 {keeps more tension.} Rxg7+ 69. Kxg7 c2 70. Rc4) 68... Rxg7+ $1 {[%emt 0:00:09]} 69. Kxg7 {[%emt 0:00:01] [#]} Nxa5 $1 {[%emt 0:00:07]} 70. Rxa5 {[%emt 0:00:04]} c2 {[%emt 0:00:05]} 71. Rc5 {[%emt 0:00:02]} c1=Q {[%emt 0:00:08]} 72. Rxc1 Kxc1 {Weighted Error Value: White=0.30/Black=0.19 (very precise)} 1/2-1/2

[Event "SVK ECo-C Extraliga 2021-22"]
[Site "Slovakia"]
[Date "2022.05.07"]
[Round "7.1"]
[White "Ftacnik, Lubomir"]
[Black "Markos, Jan"]
[Result "1/2-1/2"]
[ECO "E97"]
[WhiteElo "2508"]
[BlackElo "2565"]
[Annotator "TA"]
[PlyCount "57"]
[EventDate "2021.10.21"]
[EventType "team-tourn"]
[EventCountry "SVK"]
[SourceTitle "playchess.com"]
[Source "ChessBase"]
[SourceQuality "1"]
[TimeControl "40/5400+30:1800+30"]

{[%evp 25,44,13,19,21,12,7,33,18,23,28,17,16,47,15,19,23,16,8,8,6,10]} 1. Nf3 {[%emt 0:00:04]} Nf6 {[%emt 0:00:13]} 2. c4 {[%emt 0:00:09]} g6 {[%emt 0:02:18]} 3. Nc3 {[%emt 0:00:12]} Bg7 {[%emt 0:00:03]} 4. d4 {[%emt 0:00:13]} O-O {[%emt 0:00:05]} 5. e4 {[%emt 0:00:05]} d6 {[%emt 0:00:04]} 6. Be2 {[%emt 0:00:07]} e5 {[%emt 0:01:54]} 7. O-O {[%emt 0:00:13]} Nc6 {[%emt 0:01:09]} 8. d5 {[%emt 0:00:12]} Ne7 {[%emt 0:00:04]} 9. b4 {[%emt 0:00:29]} Nh5 {[%emt 0:06:00]} 10. Re1 {[%emt 0:00:43]} f5 {[%emt 0:00:54]} 11. Ng5 {[%emt 0:01:19]} Nf4 {[%emt 0:00:45]} 12. Bxf4 {[%emt 0:03:19]} exf4 {[%emt 0:00:06]} 13. Rc1 {[%emt 0:00:07][%cal Ba1c1,Bc1c3,Bc3e3][%mdl 32]} Bf6 {[%emt 0:00:03]} 14. Ne6 {[%emt 0:05:34] E97: King's Indian: Classical Main Line (6...e5 7 0-0 Nc6): 8 Be3 and 8 d5 Ne7, not 9 Ne1.} Bxe6 {[%emt 0:00:19]} 15. dxe6 {[%emt 0:00:04]} Bxc3 {[%emt 0:00:04]} 16. Rxc3 {[%emt 0:00:07][%cal Oe4e5] White is slightly better.} fxe4 {[%emt 0:00:03]} 17. Bg4 {[%emt 0:06:00]} e3 {[%emt 0:00:16]} 18. fxe3 {[%emt 0:00:35]} fxe3 {[%emt 0:00:04]} 19. Rcxe3 {[%emt 0:03:39] Black should prevent Rf3.} c6 $1 {[%emt 0:00:16]} 20. Qd4 {[%emt 0:09:18]} d5 {[%emt 0:04:07]} 21. cxd5 {[%emt 0:08:44]} Qxd5 {[%emt 0:02:28]} 22. Qxd5 {[%emt 0:04:10]} cxd5 {[%emt 0:01:14] [#] An even fight not without its subleties.  Weighted Error Value: White=0.03 (flawless) /Black=0.04 (flawless)} {Predecessor:} 23. Bf3 $146 a5 24. bxa5 Rxa5 25. Rc3 Rxa2 26. Rc7 Re8 27. Rxb7 Rd2 28. Bd1 Rd4 29. Bb3 {½-½ (43) Vaassen,J (2124)-Femmel,D (2106) IECC email 2001} 1/2-1/2